bitfinex/quotes_BTCUSD_20251207
["timestamp","ask_amount","ask_price","bid_price","bid_amount"]
[1765122584966,0.002,89000.0,88999.0,0.06718287]
[1765122585164,0.002,89000.0,88999.0,0.15270287]
[1765122585363,0.002,89000.0,88999.0,0.06718287]
[1765122586694,0.002,89000.0,88999.0,0.15270287]
[1765122586910,0.002,89000.0,88999.0,0.24240021]
[1765122587579,0.002,89000.0,88999.0,0.58760419]
[1765122587743,0.002,89000.0,88999.0,0.65012718]
[1765122588440,0.002,89000.0,88999.0,0.64812718]
[1765122588648,0.002,89000.0,88999.0,0.65112718]
[1765122589395,0.01776,89028.0,89025.0,0.01123279]
[1765122589610,0.01787811,89028.0,89025.0,0.23588674]
[1765122590158,0.01787811,89028.0,89025.0,0.01123279]
[1765122590361,0.01123317,89022.0,89014.0,0.03384]
[1765122590561,0.01703123,89019.0,89016.0,0.23591039]
[1765122590745,0.01123368,89018.0,89015.0,0.01123406]
[1765122590943,0.05904368,89018.0,89015.0,0.01123406]
[1765122591147,0.04781,89018.0,89015.0,0.01123406]
[1765122591348,0.02220398,89015.0,89013.0,0.22468628]
[1765122591552,0.01776,89014.0,89013.0,0.22468628]
[1765122592188,0.01776,89014.0,89012.0,0.01123444]
[1765122592390,0.01776,89014.0,89013.0,0.22468628]
[1765122593085,0.01776,89014.0,89013.0,0.22568628]
[1765122593689,0.02376,89014.0,89013.0,0.22768628]
[1765122594348,0.02376,89014.0,89013.0,0.003]
[1765122594547,0.02376,89014.0,89013.0,0.22768628]
[1765122595974,0.006,89014.0,89013.0,0.003]
[1765122596180,0.01776,89030.0,89027.0,0.22465094]
[1765122596385,0.01776,89030.0,89027.0,0.36981381]
[1765122597038,0.01776,89030.0,89027.0,0.28501381]
[1765122597210,0.01776,89030.0,89027.0,0.22626381]
[1765122597565,0.01776,89030.0,89027.0,0.28501381]
[1765122597767,0.00511811,89028.0,89027.0,0.28701381]
[1765122598181,0.00611811,89028.0,89027.0,0.28701381]
[1765122598618,0.00511811,89028.0,89027.0,0.3713731]
[1765122599033,0.00511811,89028.0,89027.0,0.3723731]
[1765122599212,0.00511811,89028.0,89027.0,0.28801381]
[1765122601152,0.01122725,89069.0,89063.0,0.011228]
[1765122601296,4.425e-05,89069.0,89067.0,0.0112275]
[1765122601656,4.425e-05,89069.0,89067.0,0.23577601]
[1765122601657,0.01776,89068.0,89067.0,0.23577601]
[1765122601858,4.425e-05,89069.0,89068.0,0.11856]
[1765122602029,4.425e-05,89069.0,89068.0,0.17731]
[1765122603345,0.00704425,89069.0,89068.0,0.17731]
[1765122603549,4.425e-05,89069.0,89068.0,0.16424104]
[1765122603946,0.00104425,89069.0,89068.0,0.16624104]
[1765122607078,0.00104425,89069.0,89068.0,0.10749104]
[1765122610222,0.00104425,89069.0,89068.0,0.16624104]
[1765122610757,0.00104425,89069.0,89068.0,0.16785391]
[1765122611987,0.00104425,89069.0,89068.0,0.25553391]
[1765122614093,0.00104425,89069.0,89068.0,0.18380287]
[1765122617182,0.00104425,89069.0,89068.0,0.00361287]
[1765122618834,0.00104425,89069.0,89068.0,0.06332287]
[1765122619451,0.00104425,89069.0,89068.0,0.15100287]
[1765122621399,0.00104425,89069.0,89068.0,0.002]
[1765122621400,0.08667425,89069.0,89068.0,0.002]
[1765122621615,0.67080636,89069.0,89068.0,0.002]
[1765122622403,0.68127071,89069.0,89068.0,0.002]
[1765122622602,0.68227071,89069.0,89068.0,0.002]
[1765122622801,0.03343375,89049.0,89045.0,0.01123027]
[1765122623008,0.02898989,89048.0,89045.0,0.01123027]
[1765122623217,0.02220398,89046.0,89045.0,0.01123027]
[1765122623376,0.04602112,89048.0,89042.0,0.01123065]
[1765122623755,0.01123002,89047.0,89043.0,0.01123052]
[1765122623890,0.23583333,89046.0,89041.0,0.01123078]
[1765122624228,0.12000123,89048.0,89042.0,0.01123065]
[1765122624431,0.002,89046.0,89045.0,0.001]
[1765122624731,0.02220398,89046.0,89043.0,0.01123052]
[1765122624892,0.01123015,89046.0,89042.0,0.01123065]
[1765122625076,0.01223015,89046.0,89042.0,0.01123065]
[1765122625279,0.01223015,89046.0,89043.0,0.01123052]
[1765122625479,0.01123015,89046.0,89043.0,0.01123052]
[1765122625727,0.01123027,89045.0,89042.0,0.01123065]
[1765122625951,0.01123015,89046.0,89042.0,0.01123065]
[1765122625952,0.001,89046.0,89045.0,0.29554341]
[1765122626525,0.02076,89046.0,89045.0,0.38483628]
[1765122626726,0.01776,89046.0,89045.0,0.38483628]
[1765122627295,0.01976,89046.0,89045.0,0.38583628]
[1765122627507,0.01776,89046.0,89045.0,0.38483628]
[1765122627802,0.01876,89046.0,89045.0,0.47811153]
[1765122629123,0.01776,89046.0,89045.0,0.47611153]
[1765122629329,0.01876,89046.0,89045.0,0.47911153]
[1765122630114,0.01876,89046.0,89045.0,0.38783628]
[1765122630800,0.01876,89046.0,89045.0,0.30015628]
[1765122631353,0.01876,89046.0,89045.0,0.38783628]
[1765122633220,0.001,89046.0,89045.0,0.38783628]
[1765122637680,0.001,89046.0,89045.0,0.30015628]
[1765122638183,0.001,89046.0,89045.0,0.00461287]
[1765122641228,0.001,89046.0,89045.0,0.003]
[1765122641229,0.13154,89046.0,89045.0,0.003]
[1765122643443,0.15374398,89046.0,89045.0,0.003]
[1765122644511,0.02220398,89039.0,89038.0,0.01123115]
[1765122644731,0.03996398,89039.0,89038.0,0.01123115]
[1765122645172,0.08543398,89039.0,89038.0,0.01123115]
[1765122646142,0.13142398,89039.0,89038.0,0.01123115]
[1765122646339,0.02220398,89037.0,89036.0,0.23585827]
[1765122646783,0.001,89039.0,89036.0,0.39529884]
[1765122646998,0.01876,89039.0,89038.0,0.28005319]
[1765122647200,0.01876,89039.0,89038.0,0.30871606]
[1765122647437,0.01876,89039.0,89038.0,0.39369606]
[1765122647646,0.01776,89039.0,89038.0,0.39369606]
[1765122647835,0.04547,89056.0,89038.0,0.39369606]
[1765122647836,0.04547,89056.0,89054.0,0.22458283]
[1765122648006,0.01776,89055.0,89053.0,0.01122926]
[1765122648213,0.02220398,89054.0,89053.0,0.01122926]
[1765122648415,0.01776,89055.0,89053.0,0.01122926]
[1765122648621,0.01776,89055.0,89054.0,0.22458283]
[1765122649212,0.01876,89055.0,89054.0,0.22458283]
[1765122649647,0.01776,89055.0,89054.0,0.22458283]
[1765122650493,0.01703123,89059.0,89058.0,0.22457275]
[1765122650666,0.03479123,89059.0,89058.0,0.22457275]
[1765122650873,0.03479123,89059.0,89055.0,0.22457975]
[1765122650874,0.08229123,89059.0,89055.0,0.23580876]
[1765122651083,0.08229123,89059.0,89055.0,0.01122901]
[1765122651084,0.11978123,89059.0,89055.0,0.01122901]
[1765122651302,0.06923398,89056.0,89055.0,0.01122901]
[1765122651499,0.04703,89056.0,89055.0,0.01122901]
[1765122651701,0.02220398,89058.0,89056.0,0.23580667]
[1765122651952,0.03679123,89059.0,89056.0,0.01122888]
[1765122652079,0.0475,89057.0,89056.0,0.01122888]
[1765122652507,0.15469398,89057.0,89056.0,0.01122888]
[1765122652714,0.13249,89057.0,89056.0,0.01122888]
[1765122652972,0.15469398,89057.0,89056.0,0.01122888]
[1765122653361,0.06970398,89057.0,89056.0,0.01122888]
[1765122654172,0.15969398,89057.0,89056.0,0.001]
[1765122654982,0.005,89057.0,89056.0,0.22557779]
[1765122655344,0.02720398,89057.0,89056.0,0.22557779]
[1765122655545,0.005,89057.0,89056.0,0.22557779]
[1765122657263,0.13755,89057.0,89056.0,0.22557779]
[1765122657466,0.15975398,89057.0,89056.0,0.001]
[1765122657705,0.17751398,89057.0,89056.0,0.001]
[1765122660005,0.09831398,89057.0,89056.0,0.001]
[1765122660387,0.17751398,89057.0,89056.0,0.001]
[1765122660839,0.09831398,89057.0,89056.0,0.001]
[1765122661055,0.17751398,89057.0,89056.0,0.001]
[1765122662048,0.09831398,89057.0,89056.0,0.001]
[1765122662214,0.27345154,89057.0,89056.0,0.001]
[1765122662391,0.17751398,89057.0,89056.0,5.001]
[1765122667890,0.02276,89057.0,89056.0,5.001]
[1765122668047,0.02276,89057.0,89056.0,5.22557779]
[1765122668464,0.02276,89057.0,89056.0,5.36549066]
[1765122668465,0.005,89057.0,89056.0,5.36549066]
[1765122669678,0.003,89057.0,89056.0,5.36549066]
[1765122670077,0.01776,89065.0,89064.0,0.22455762]
[1765122670271,0.01776,89065.0,89064.0,0.28015762]
[1765122670473,0.0002,89070.0,89069.0,0.22454501]
[1765122670701,0.01796,89070.0,89069.0,0.28014501]
[1765122670861,0.01796,89070.0,89069.0,0.36284501]
[1765122671066,0.01796,89070.0,89069.0,0.28014501]
[1765122671769,0.0002,89070.0,89069.0,0.28014501]
[1765122672124,0.0002,89070.0,89069.0,0.28175788]
[1765122672341,0.0002,89070.0,89069.0,0.39146294]
[1765122672551,0.0002,89070.0,89069.0,0.36580788]
[1765122673123,0.0002,89070.0,89069.0,0.36780788]
[1765122673490,0.0002,89070.0,89069.0,0.36580788]
[1765122673694,0.0012,89070.0,89069.0,0.36880788]
[1765122674886,0.0012,89070.0,89069.0,0.28575788]
[1765122675244,0.0012,89070.0,89069.0,0.36989788]
[1765122676567,0.0012,89070.0,89069.0,0.39555294]
[1765122676769,0.0012,89070.0,89069.0,0.23015788]
[1765122678013,0.0012,89070.0,89069.0,0.00561287]
[1765122678875,0.0012,89070.0,89069.0,0.004]
[1765122679282,0.15709398,89070.0,89069.0,0.004]
[1765122680042,0.15609398,89070.0,89069.0,0.001]
[1765122680501,0.16009398,89070.0,89069.0,0.002]
[1765122680898,0.16009398,89070.0,89069.0,0.001]
[1765122681109,0.16209398,89070.0,89069.0,0.001]
[1765122681517,0.16009398,89070.0,89069.0,0.001]
[1765122682019,0.16409398,89070.0,89069.0,0.001]
[1765122682252,0.02220398,89057.0,89056.0,5.0]
[1765122682453,0.04076398,89057.0,89056.0,5.0]
[1765122682671,0.12144398,89057.0,89056.0,5.0]
[1765122683687,0.12344398,89057.0,89056.0,5.001]
[1765122683888,0.02056,89057.0,89056.0,5.001]
[1765122684273,0.02256,89057.0,89056.0,5.001]
[1765122684893,0.10324,89057.0,89056.0,5.001]
[1765122685701,0.12544398,89057.0,89056.0,5.001]
[1765122686230,0.0048,89057.0,89056.0,5.22719066]
[1765122686517,0.02176,89057.0,89056.0,5.23719066]
[1765122687716,0.02176,89057.0,89056.0,5.01261287]
[1765122687932,0.17765398,89057.0,89056.0,5.01261287]
[1765122689016,0.17765398,89057.0,89056.0,5.011]
[1765122691027,0.15545,89057.0,89056.0,5.011]
[1765122691356,0.17765398,89057.0,89056.0,5.011]
[1765122694189,0.15545,89057.0,89056.0,5.011]
[1765122694387,0.07497,89057.0,89056.0,5.011]
[1765122694586,0.02176,89057.0,89056.0,5.011]
[1765122695693,0.15504,89057.0,89056.0,5.011]
[1765122695935,0.17724398,89057.0,89056.0,5.011]
[1765122700118,0.27364221,89057.0,89056.0,5.011]
[1765122702107,0.17724398,89057.0,89056.0,5.011]
[1765122706116,0.18774959,89057.0,89056.0,5.011]
[1765122706271,0.18775185,89057.0,89056.0,5.011]
[1765122706442,0.17724398,89057.0,89056.0,5.011]
[1765122706963,0.1877518,89057.0,89056.0,5.011]
[1765122708598,0.28520081,89057.0,89056.0,5.011]
[1765122709602,0.1877518,89057.0,89056.0,5.011]
[1765122715709,0.1699918,89057.0,89056.0,5.011]
[1765122715883,0.1877518,89057.0,89056.0,5.011]
[1765122716944,0.16554782,89057.0,89056.0,5.011]
[1765122717317,0.1877518,89057.0,89056.0,5.011]
[1765122718915,0.16554782,89057.0,89056.0,5.011]
[1765122719055,0.1877518,89057.0,89056.0,5.011]
[1765122720215,0.16554782,89057.0,89056.0,5.011]
[1765122721091,0.26696102,89057.0,89056.0,5.011]
[1765122721307,0.289165,89057.0,89056.0,5.011]
[1765122721521,0.1877518,89057.0,89056.0,5.011]
[1765122721964,0.004,89057.0,89056.0,5.011]
[1765122722190,0.004,89057.0,89056.0,5.28851066]
[1765122722423,0.02176,89057.0,89056.0,5.36289066]
[1765122722654,0.02176,89057.0,89056.0,5.47259572]
[1765122723104,0.004,89057.0,89056.0,5.47259572]
[1765122723316,0.004,89057.0,89056.0,5.4947997]
[1765122723523,0.002,89057.0,89056.0,5.4937997]
[1765122723946,0.002,89057.0,89056.0,5.47159572]
[1765122724588,0.0002,89070.0,89056.0,5.47159572]
[1765122724589,0.0002,89070.0,89069.0,0.22454501]
[1765122724792,0.0002,89070.0,89069.0,0.27747788]
[1765122725022,0.0002,89070.0,89069.0,0.35185788]
[1765122725776,0.0012,89070.0,89069.0,0.35185788]
[1765122726182,0.0022,89070.0,89069.0,0.35585788]
[1765122727622,0.0022,89070.0,89069.0,0.23015788]
[1765122729046,0.0022,89070.0,89069.0,0.28147788]
[1765122730019,0.0022,89070.0,89069.0,0.00561287]
[1765122730254,0.0022,89070.0,89069.0,0.004]
[1765122730255,0.15687398,89070.0,89069.0,0.004]
[1765122730419,0.2022797,89070.0,89069.0,0.004]
[1765122730913,0.2012797,89070.0,89069.0,0.004]
[1765122731329,0.2012797,89070.0,89069.0,0.005]
[1765122731556,0.2002797,89070.0,89069.0,0.001]
[1765122731732,0.02220398,89057.0,89050.0,0.01122964]
[1765122731931,0.11097398,89057.0,89049.0,0.01122977]
[1765122732133,0.18387398,89057.0,89049.0,0.01122977]
[1765122732585,0.18387398,89057.0,89050.0,0.01122964]
[1765122732756,0.18387398,89057.0,89049.0,0.01122977]
[1765122732975,0.18387398,89057.0,89050.0,0.01122964]
[1765122733167,0.18487398,89057.0,89056.0,5.011]
[1765122733935,0.18587398,89057.0,89056.0,5.011]
[1765122734190,0.002,89057.0,89056.0,5.39039066]
[1765122735390,0.001,89057.0,89056.0,5.39039066]
[1765122735867,0.0002,89070.0,89069.0,0.22454501]
[1765122736282,0.0002,89070.0,89069.0,0.35317788]
[1765122737796,0.0002,89070.0,89069.0,0.35417788]
[1765122738007,0.0002,89070.0,89069.0,0.45910728]
[1765122738411,0.0002,89070.0,89069.0,0.45810728]
[1765122738556,0.0012,89070.0,89069.0,0.46710728]
[1765122738760,0.0012,89070.0,89069.0,0.46810728]
[1765122739503,0.0012,89070.0,89069.0,0.36317788]
[1765122739910,0.0012,89070.0,89069.0,0.28677788]
[1765122740107,0.0012,89070.0,89069.0,0.36317788]
[1765122742009,0.0012,89070.0,89069.0,0.28677788]
[1765122742911,0.0012,89070.0,89069.0,0.36317788]
[1765122743455,0.0012,89070.0,89069.0,0.28677788]
[1765122744127,0.0012,89070.0,89069.0,0.36317788]
[1765122744333,0.0012,89070.0,89069.0,0.46910728]
[1765122744500,0.0012,89070.0,89069.0,0.36317788]
[1765122747678,0.0012,89070.0,89069.0,0.28677788]
[1765122748083,0.0012,89070.0,89069.0,0.36317788]
[1765122748480,0.0012,89070.0,89069.0,0.23615788]
[1765122749240,0.0012,89070.0,89069.0,0.23454501]
[1765122750227,0.0012,89070.0,89069.0,0.36317788]
[1765122756728,0.0012,89070.0,89069.0,0.38538186]
[1765122759959,0.0012,89070.0,89069.0,0.77090485]
[1765122760302,0.0012,89070.0,89069.0,0.68617788]
[1765122760879,0.0002,89070.0,89069.0,0.67617788]
[1765122761207,0.0012,89070.0,89069.0,0.68417788]
[1765122761483,0.0002,89070.0,89069.0,0.67717788]
[1765122761837,0.0012,89070.0,89069.0,0.68317788]
[1765122762253,0.0012,89070.0,89069.0,0.68217788]
[1765122762671,0.0012,89070.0,89069.0,0.79188294]
[1765122765415,0.0012,89070.0,89069.0,0.81408692]
[1765122765941,0.0012,89070.0,89069.0,0.85374282]
[1765122766144,0.0012,89070.0,89069.0,0.89436991]
[1765122767172,0.0002,89070.0,89069.0,0.88836991]
[1765122767621,0.0032,89070.0,89069.0,0.88836991]
[1765122768215,0.0032,89070.0,89069.0,0.94773119]
[1765122769090,0.0032,89070.0,89069.0,1.03716991]
[1765122770179,0.0032,89070.0,89069.0,1.01940991]
[1765122770477,0.0032,89070.0,89069.0,1.03716991]
[1765122771170,0.0032,89070.0,89069.0,1.0972557]
[1765122771686,0.0032,89070.0,89069.0,1.03716991]
[1765122772517,0.0002,89080.0,89079.0,0.56972378]
[1765122772713,0.0002,89080.0,89079.0,0.70068698]
[1765122772921,0.0002,89080.0,89079.0,0.77722698]
[1765122774125,0.0002,89090.0,89089.0,0.56969858]
[1765122774329,0.0002,89090.0,89089.0,0.84195549]
[1765122774546,0.0002,89090.0,89089.0,0.80199444]
[1765122774742,0.0002,89090.0,89089.0,0.82251975]
[1765122775142,0.0002,89110.0,89109.0,0.54744422]
[1765122775438,0.0002,89110.0,89109.0,0.69548107]
[1765122775880,0.0002,89110.0,89109.0,0.75800406]
[1765122776178,0.0002,89110.0,89109.0,0.69103709]
[1765122776382,0.0002,89110.0,89109.0,0.80074215]
[1765122778151,0.0042,89110.0,89109.0,0.80074215]
[1765122778468,0.0042,89110.0,89109.0,0.78298215]
[1765122778991,0.0042,89110.0,89109.0,0.27373709]
[1765122779171,0.0062,89110.0,89109.0,0.27373709]
[1765122779353,0.0022,89110.0,89109.0,0.36663107]
[1765122779561,0.0082,89110.0,89109.0,0.36663107]
[1765122779760,0.0082,89110.0,89109.0,0.34442709]
[1765122779958,0.0012,89110.0,89109.0,0.45338771]
[1765122780424,0.0072,89110.0,89109.0,0.45338771]
[1765122780629,0.0012,89110.0,89109.0,0.45338771]
[1765122781060,0.0062,89110.0,89109.0,0.45338771]
[1765122781254,0.0052,89110.0,89109.0,0.45338771]
[1765122781960,0.0052,89110.0,89109.0,0.22444422]
[1765122782369,0.0052,89110.0,89105.0,0.22445206]
[1765122782370,0.13734208,89110.0,89100.0,0.22446493]
[1765122782566,0.02220398,89107.0,89105.0,0.01122271]
[1765122782981,0.12092,89106.0,89105.0,0.01122271]
[1765122783989,0.12092,89106.0,89100.0,0.01122334]
[1765122784210,0.07178,89105.0,89101.0,0.22446437]
[1765122784416,0.07178,89105.0,89102.0,0.01122309]
[1765122784586,0.007,89106.0,89103.0,0.01122296]
[1765122784805,0.007,89106.0,89103.0,0.23568229]
[1765122785595,0.003,89105.0,89103.0,0.23568229]
[1765122786012,0.005,89106.0,89103.0,0.23568229]
[1765122786544,0.002,89106.0,89103.0,0.23568128]
[1765122786840,0.004,89106.0,89103.0,0.23568128]
[1765122787386,0.01522258,89106.0,89101.0,0.01122321]
[1765122787612,0.01122271,89105.0,89102.0,0.01122309]
[1765122787792,0.08700258,89106.0,89103.0,0.01122296]
[1765122787992,0.004,89106.0,89103.0,0.23568173]
[1765122788417,0.002,89106.0,89103.0,0.23568173]
[1765122788619,0.01703123,89108.0,89106.0,0.22445177]
[1765122789419,0.01703123,89108.0,89107.0,0.05207806]
[1765122789618,0.01703123,89108.0,89106.0,0.22445177]
[1765122790223,0.01703123,89108.0,89106.0,0.22545177]
[1765122790405,0.01903123,89108.0,89106.0,0.22545177]
[1765122790604,0.002,89108.0,89106.0,0.22545177]
[1765122791830,0.01703123,89107.0,89106.0,0.22545177]
[1765122792055,0.01703123,89107.0,89106.0,0.29987568]
[1765122792640,0.01742556,89107.0,89106.0,0.29987568]
[1765122792855,0.01942556,89107.0,89106.0,0.29987568]
[1765122793058,0.01942556,89107.0,89106.0,0.29887568]
[1765122793442,0.01942556,89107.0,89106.0,0.29987568]
[1765122795365,0.00239433,89107.0,89106.0,0.29987568]
[1765122796981,0.00239433,89107.0,89106.0,0.41996855]
[1765122797163,0.00239433,89107.0,89106.0,0.44217253]
[1765122797539,0.00239433,89107.0,89106.0,0.41996855]
[1765122797782,0.00039433,89107.0,89106.0,0.41996855]
[1765122798162,0.00139433,89107.0,89106.0,0.41996855]
[1765122798368,0.00139433,89107.0,89106.0,0.41896855]
[1765122798573,0.00239433,89107.0,89106.0,0.42296855]
[1765122799085,0.00239433,89107.0,89106.0,0.35351855]
[1765122799875,0.00239433,89107.0,89106.0,0.27909464]
[1765122800081,0.00239433,89107.0,89106.0,0.23006464]
[1765122800695,0.00239433,89107.0,89106.0,0.27909464]
[1765122801262,0.00239433,89107.0,89106.0,0.004]
[1765122801377,0.12193433,89107.0,89106.0,0.004]
[1765122801579,0.16116954,89107.0,89106.0,0.004]
[1765122801829,0.16534218,89107.0,89106.0,0.004]
[1765122802148,0.52104173,89107.0,89106.0,0.004]
[1765122802339,0.02220398,89080.0,89079.0,0.2245198]
[1765122802512,0.02220398,89077.0,89075.0,0.01122649]
[1765122802713,0.03527,89079.0,89076.0,0.01122636]
[1765122802931,0.02220398,89077.0,89075.0,0.01692851]
[1765122803135,0.05302,89080.0,89079.0,0.2245198]
[1765122803544,0.0531382,89080.0,89079.0,0.2245198]
[1765122803948,0.0178782,89080.0,89079.0,0.2245198]
[1765122804115,0.0178782,89080.0,89079.0,0.41662936]
[1765122804317,0.0178782,89080.0,89079.0,0.41824223]
[1765122804943,0.0178782,89080.0,89079.0,0.34461267]
[1765122805361,0.0178782,89080.0,89079.0,0.35261267]
[1765122805362,0.0188782,89080.0,89079.0,0.35261267]
[1765122806281,0.0011182,89080.0,89079.0,0.35261267]
[1765122806918,0.0011182,89080.0,89079.0,0.37481665]
[1765122807452,0.0011182,89080.0,89079.0,0.90913964]
[1765122807660,0.0011182,89080.0,89079.0,1.0188447]
[1765122807884,0.0011182,89080.0,89079.0,1.0366047]
[1765122808821,0.0011182,89080.0,89079.0,1.07652062]
[1765122809024,0.0011182,89080.0,89079.0,1.0366047]
[1765122809324,0.0011182,89080.0,89079.0,1.0356047]
[1765122809500,0.0001182,89080.0,89079.0,1.0286047]
[1765122811012,0.0001182,89080.0,89079.0,1.0296047]
[1765122811234,0.0011182,89080.0,89079.0,1.0326047]
[1765122811599,0.0011182,89080.0,89079.0,1.01040072]
[1765122811794,0.0011182,89080.0,89079.0,0.93011773]
[1765122813320,0.0002,89110.0,89079.0,0.93011773]
[1765122813321,0.0002,89110.0,89109.0,0.22444422]
[1765122813521,0.00059377,89110.0,89109.0,0.63805107]
[1765122813671,0.00059377,89110.0,89109.0,0.74740929]
[1765122813850,0.00059377,89110.0,89109.0,0.70750107]
[1765122814427,0.00059377,89110.0,89109.0,0.77002406]
[1765122814924,0.00159377,89110.0,89109.0,0.77002406]
[1765122815414,0.00159377,89110.0,89109.0,0.77102406]
[1765122815781,0.00159377,89110.0,89109.0,0.70850107]
[1765122815985,0.00159377,89110.0,89109.0,0.77824215]
[1765122816201,0.00159377,89110.0,89109.0,0.45524215]
[1765122816364,0.00159377,89110.0,89109.0,0.22544422]
[1765122817008,0.00159377,89110.0,89109.0,0.22444422]
[1765122817333,0.00059377,89110.0,89109.0,0.22544422]
[1765122817535,0.36877945,89110.0,89109.0,0.001]
[1765122817705,0.36677945,89110.0,89109.0,0.001]
[1765122817888,0.45215907,89110.0,89109.0,0.001]
[1765122818297,0.02220398,89105.0,89104.0,0.01122284]
[1765122818485,0.02220398,89104.0,89103.0,0.01122296]
[1765122818690,0.14160398,89104.0,89103.0,0.23568229]
[1765122818911,0.02220398,89102.0,89101.0,0.2356868]
[1765122819123,0.07648398,89102.0,89101.0,0.2356868]
[1765122820145,0.07648398,89102.0,89101.0,0.30639452]
[1765122820494,0.05428,89102.0,89101.0,0.30639452]
[1765122821179,0.05428,89102.0,89101.0,0.2356868]
[1765122821342,0.06128,89102.0,89101.0,0.2356868]
[1765122821744,0.007,89102.0,89101.0,0.35438967]
[1765122821941,0.007,89102.0,89101.0,0.71378764]
[1765122822183,0.007,89102.0,89101.0,0.84961772]
[1765122822382,0.007,89102.0,89101.0,0.8718217]
[1765122822608,0.0002,89130.0,89119.0,0.43264299]
[1765122822609,1e-08,89120.0,89119.0,0.43264299]
[1765122822892,0.00011809,89120.0,89119.0,0.69867887]
[1765122823136,0.00011809,89120.0,89119.0,0.86893451]
[1765122823457,1e-08,89130.0,89129.0,0.63212082]
[1765122823656,0.0002,89150.0,89149.0,0.54734351]
[1765122823828,0.00031804,89150.0,89149.0,0.59607638]
[1765122824060,0.00031804,89150.0,89149.0,0.77384144]
[1765122824271,0.00031804,89150.0,89149.0,0.83636443]
[1765122825008,0.00031804,89150.0,89149.0,0.85856841]
[1765122825207,0.00031804,89150.0,89149.0,0.86056841]
[1765122825478,0.00031804,89150.0,89149.0,0.79704542]
[1765122825844,0.00031804,89150.0,89149.0,0.77584144]
[1765122826657,0.00031804,89150.0,89149.0,0.77484144]
[1765122826857,0.00031804,89150.0,89149.0,0.77384144]
[1765122827227,0.00031804,89150.0,89149.0,0.79904542]
[1765122827450,0.00031804,89150.0,89149.0,0.79604542]
[1765122827843,0.00031804,89150.0,89149.0,0.38278144]
[1765122828299,0.00031804,89150.0,89149.0,0.33566144]
[1765122829062,0.00031804,89150.0,89149.0,0.45084144]
[1765122829465,0.00147301,89150.0,89149.0,0.45084144]
[1765122829680,0.00147301,89150.0,89149.0,0.33566144]
[1765122830080,0.00147301,89150.0,89149.0,0.33404857]
[1765122832495,0.00147301,89150.0,89149.0,0.10970506]
[1765122832693,0.00147301,89150.0,89149.0,0.15682506]
[1765122833153,0.00147301,89150.0,89149.0,0.10970506]
[1765122834033,0.00147301,89150.0,89149.0,0.15682506]
[1765122834239,0.00147301,89150.0,89149.0,0.23572708]
[1765122834442,0.00147301,89150.0,89149.0,0.22649793]
[1765122836880,0.00147301,89150.0,89149.0,0.79604542]
[1765122837560,0.0693,89184.0,89149.0,0.79604542]
[1765122837561,0.01121076,89200.0,89196.0,0.01121126]
[1765122837764,0.01121076,89200.0,89195.0,0.01121139]
[1765122837765,0.00039362,89200.0,89195.0,0.01121139]
[1765122837964,0.01160438,89200.0,89196.0,0.01121126]
[1765122838205,0.00039362,89200.0,89198.0,0.22422027]
[1765122838388,0.01703123,89199.0,89198.0,0.22422003]
[1765122838584,0.01703123,89199.0,89196.0,0.23543468]
[1765122839033,0.0693,89198.0,89195.0,0.01121139]
[1765122839205,0.00039362,89200.0,89199.0,0.22421776]
[1765122839685,0.00339362,89200.0,89199.0,0.22421776]
[1765122839898,0.00039362,89200.0,89199.0,0.22421776]
[1765122840117,0.00039362,89200.0,89197.0,0.23543346]
[1765122840327,0.005,89198.0,89197.0,0.23543346]
[1765122840537,0.002,89198.0,89197.0,0.23543346]
[1765122840782,0.00039362,89200.0,89197.0,0.23543346]
[1765122840996,0.00239362,89200.0,89199.0,0.04582]
[1765122841218,0.0002,89210.0,89209.0,0.22419262]
[1765122841424,0.00099999,89260.0,89209.0,0.22419262]
[1765122841425,0.2240792,89255.0,89241.0,0.01120561]
[1765122841628,0.05842295,89247.0,89242.0,0.03433]
[1765122841760,0.0112051,89245.0,89239.0,0.01120586]
[1765122841965,0.0650181,89247.0,89244.0,0.01120523]
[1765122842170,0.0472181,89247.0,89246.0,0.04582]
[1765122842371,0.0472181,89247.0,89246.0,0.26991967]
[1765122842570,0.0472181,89247.0,89246.0,0.34089254]
[1765122842775,0.0422181,89247.0,89246.0,0.34089254]
[1765122843117,0.0422181,89247.0,89246.0,0.66389254]
[1765122843118,0.0492181,89247.0,89246.0,0.66389254]
[1765122843529,0.04516247,89247.0,89246.0,0.66489254]
[1765122843692,0.04516247,89247.0,89246.0,0.66589254]
[1765122844095,0.04516247,89247.0,89246.0,0.66389254]
[1765122844288,0.04516247,89247.0,89246.0,0.67589254]
[1765122844605,0.0447564,89247.0,89246.0,0.67589254]
[1765122845013,0.0447564,89247.0,89246.0,0.69809652]
[1765122845428,0.0447564,89247.0,89246.0,0.73841553]
[1765122845627,0.0447564,89247.0,89246.0,0.72941553]
[1765122845834,0.0447564,89247.0,89246.0,0.75021553]
[1765122846008,0.0447564,89247.0,89246.0,0.72941553]
[1765122846208,0.0447564,89247.0,89246.0,0.76641951]
[1765122846459,0.0447564,89247.0,89246.0,0.75661951]
[1765122846645,0.0447564,89247.0,89246.0,0.77441951]
[1765122846826,0.0447564,89247.0,89246.0,0.76641951]
[1765122847013,0.0447564,89247.0,89246.0,0.77341951]
[1765122847209,0.22396946,89298.0,89277.0,0.22402186]
[1765122847416,0.22396379,89301.0,89277.0,0.28805186]
[1765122847417,0.01714915,89278.0,89277.0,0.28805186]
[1765122847628,0.01714915,89278.0,89277.0,0.35902473]
[1765122847834,0.00585329,89330.0,89316.0,0.2239226]
[1765122848037,0.00585329,89330.0,89317.0,0.08062]
[1765122848038,0.00048323,89318.0,89317.0,0.08062]
[1765122848240,0.00048323,89318.0,89305.0,0.0348]
[1765122848241,0.03635323,89318.0,89305.0,0.0348]
[1765122848445,0.0693,89317.0,89307.0,0.01119733]
[1765122848645,0.0178,89316.0,89313.0,0.01119657]
[1765122848849,0.01703123,89314.0,89307.0,0.22394661]
[1765122849071,0.04649,89305.0,89299.0,0.01119833]
[1765122849281,0.04649,89305.0,89301.0,0.22396165]
[1765122849565,0.0693,89304.0,89301.0,0.01119808]
[1765122849770,0.02359,89302.0,89301.0,0.01119808]
[1765122850089,0.02359,89302.0,89292.0,0.22398156]
[1765122850090,0.04139,89302.0,89268.0,0.06936]
[1765122850296,0.22394281,89309.0,89295.0,0.01119883]